[Event "3rd Memorial Warakomska 2019"]
[Site "Suwalki"]
[Date "2019.08.12"]
[Round "9.38"]
[White "Szostko, Jakub"]
[Black "Dzhuguryan, Tygran"]
[Result "1-0"]
[ECO "B11"]
[WhiteElo "2245"]
[BlackElo "2230"]
[Annotator "NA"]
[PlyCount "102"]
[EventDate "2019.08.05"]
[EventType "swiss"]
[EventCountry "POL"]
[SourceTitle "playchess.com"]
[Source "ChessBase"]
[SourceQuality "1"]
[TimeControl "40/5400+30:1800+30"]

1. e4 {[%emt 0:00:00]} c6 {[%emt 0:00:00]} 2. Nc3 {[%emt 0:00:00]} d5 {[%emt 0:00:00]} 3. Nf3 {[%emt 0:00:00]} Bg4 {[%emt 0:00:20]} 4. h3 {[%emt 0:00:00]} Bxf3 {[%emt 0:00:03]} 5. Qxf3 {[%emt 0:00:03]} Nf6 {[%emt 0:00:02]} 6. Be2 {[%emt 0:00:58]} e6 {[%emt 0:00:26]} 7. O-O {[%emt 0:00:29]} Qb6 {[%emt 0:00:35]} 8. Rd1 {[%emt 0:02:45]} d4 {[%emt 0:00:47]} 9. Nb1 {[%emt 0:03:16]} Nbd7 {[%emt 0:07:27]} 10. d3 {[%emt 0:03:18]} Qc7 {[%emt 0:08:27]} 11. Bf1 {[%emt 0:05:21]} h5 {[%emt 0:00:45]} 12. Nd2 {[%emt 0:07:19]} g6 {[%emt 0:03:04]} 13. Nc4 {[%emt 0:04:05]} e5 {[%emt 0:00:18]} 14. a4 {[%emt 0:08:08]} Bh6 {[%emt 0:01:30]} 15. Bxh6 {[%emt 0:13:02]} Rxh6 {[%emt 0:00:01]} 16. h4 {[%emt 0:00:19]} Kf8 {[%emt 0:04:57]} 17. g3 {[%emt 0:00:49]} Kg7 {[%emt 0:00:09]} 18. a5 {[%emt 0:04:10]} Rhh8 {[%emt 0:02:17]} 19. Bh3 {[%emt 0:01:01]} b5 {[%emt 0:04:09]} 20. Nd2 {[%emt 0:04:13]} Nc5 {[%emt 0:01:22]} 21. Rf1 {[%emt 0:03:49]} Na4 {[%emt 0:00:32]} 22. b3 {[%emt 0:01:25]} Nc3 {[%emt 0:00:19]} 23. Qg2 {[%emt 0:02:21]} Nh7 {[%emt 0:13:17]} 24. f4 {[%emt 0:02:04]} f6 {[%emt 0:00:08]} 25. Rf2 {[%emt 0:03:53]} Raf8 {[%emt 0:01:43]} 26. Nf3 {[%emt 0:04:39]} c5 {[%emt 0:00:35]} 27. Raf1 {[%emt 0:05:09]} Qd6 {[%emt 0:01:13]} 28. Qh2 {[%emt 0:02:13]} Rhg8 {[%emt 0:00:23]} 29. fxe5 {[%emt 0:02:29]} fxe5 {[%emt 0:00:14]} 30. g4 {[%emt 0:00:11]} hxg4 {[%emt 0:00:25]} 31. Bxg4 {[%emt 0:00:35]} Rf4 {[%emt 0:00:23]} 32. Nxe5 {[%emt 0:00:59]} Rxf2 {[%emt 0:01:27]} 33. Rxf2 {[%emt 0:00:20]} Rf8 {[%emt 0:01:23]} 34. Rxf8 {[%emt 0:01:18]} Nxf8 {[%emt 0:00:03]} 35. Qf4 {[%emt 0:01:26]} Qc7 {[%emt 0:02:58]} 36. Nxg6 {[%emt 0:04:02]} Qxf4 {[%emt 0:00:11]} 37. Nxf4 {[%emt 0:00:04]} Kf6 {[%emt 0:01:27]} 38. Kf2 {[%emt 0:02:31]} Ke5 {[%emt 0:02:06]} 39. Kg3 {[%emt 0:01:42]} Nh7 {[%emt 0:01:59]} 40. Ne6 {[%emt 0:00:00]} c4 {[%emt 0:00:00]} 41. bxc4 {[%emt 0:08:00]} bxc4 {[%emt 0:00:36]} 42. Nd8 {[%emt 0:04:35]} cxd3 {[%emt 0:01:53]} 43. cxd3 {[%emt 0:00:11]} Kd6 {[%emt 0:01:24]} 44. Kf4 {[%emt 0:01:22]} Kc5 {[%emt 0:01:49]} 45. h5 {[%emt 0:02:08]} Na2 {[%emt 0:00:58]} 46. Ne6+ {[%emt 0:00:40]} Kb5 {[%emt 0:01:08]} 47. Nxd4+ {[%emt 0:00:10]} Kxa5 {[%emt 0:00:01]} 48. h6 {[%emt 0:00:33]} Nb4 {[%emt 0:00:55]} 49. Ke3 {[%emt 0:00:30]} Ng5 {[%emt 0:00:27]} 50. Bh5 {[%emt 0:01:06]} Kb6 {[%emt 0:00:46]} 51. Bg6 {[%emt 0:00:47]} Nc2+ 1-0

[Event "3rd Memorial Warakomska 2019"]
[Site "Suwalki"]
[Date "2019.08.12"]
[Round "9.39"]
[White "Kubicka, Anna"]
[Black "Zaika, Daniil"]
[Result "0-1"]
[ECO "B20"]
[WhiteElo "2202"]
[BlackElo "2216"]
[Annotator "ChessBase"]
[PlyCount "100"]
[EventDate "2019.08.05"]
[EventType "swiss"]
[EventCountry "POL"]
[SourceTitle "playchess.com"]
[Source "ChessBase"]
[SourceQuality "1"]
[TimeControl "40/5400+30:1800+30"]

1. e4 {[%emt 0:00:00]} c5 {[%emt 0:00:00]} 2. Ne2 {[%emt 0:00:00]} d6 {[%emt 0:04:15]} 3. g3 {[%emt 0:00:00]} d5 {[%emt 0:08:57]} 4. Bg2 {[%emt 0:00:06]} dxe4 {[%emt 0:00:37]} 5. Bxe4 {[%emt 0:00:05]} Nf6 {[%emt 0:00:03]} 6. Bg2 {[%emt 0:00:06]} Nc6 {[%emt 0:00:53]} 7. O-O {[%emt 0:00:08]} Bg4 {[%emt 0:01:46]} 8. h3 {[%emt 0:00:55]} Bh5 {[%emt 0:01:00]} 9. d3 {[%emt 0:00:58]} e6 {[%emt 0:00:35]} 10. Nbc3 {[%emt 0:00:22]} Rc8 {[%emt 0:11:06]} 11. Be3 {[%emt 0:01:20]} Be7 {[%emt 0:00:26]} 12. Qd2 {[%emt 0:01:35]} Bxe2 {[%emt 0:16:30]} 13. Qxe2 {[%emt 0:00:33]} Nd4 {[%emt 0:03:55]} 14. Qd2 {[%emt 0:03:22]} Qb6 {[%emt 0:02:05]} 15. Rab1 {[%emt 0:07:18]} O-O {[%emt 0:02:18]} 16. f4 {[%emt 0:00:40]} Rfd8 {[%emt 0:01:37]} 17. Kh2 {[%emt 0:04:24]} Qa6 {[%emt 0:01:16]} 18. b3 {[%emt 0:02:24]} b5 {[%emt 0:03:10]} 19. a4 {[%emt 0:09:34]} b4 {[%emt 0:00:41]} 20. Ne2 {[%emt 0:05:26]} Nf5 {[%emt 0:13:54]} 21. g4 {[%emt 0:10:10]} Nh4 {[%emt 0:03:16]} 22. Ng3 {[%emt 0:07:28]} c4 {[%emt 0:07:09]} 23. bxc4 {[%emt 0:05:50]} Rxc4 {[%emt 0:00:08]} 24. Qf2 {[%emt 0:03:12]} Rc7 {[%emt 0:00:18]} 25. Bh1 {[%emt 0:07:22]} Qxa4 {[%emt 0:01:39]} 26. Rfc1 {[%emt 0:00:09]} Rdc8 {[%emt 0:03:26]} 27. Ra1 {[%emt 0:03:58]} Rxc2 {[%emt 0:03:48]} 28. Rxa4 {[%emt 0:02:56]} Rxf2+ {[%emt 0:00:07]} 29. Bxf2 {[%emt 0:00:03]} Rxc1 {[%emt 0:00:08]} 30. Rxa7 {[%emt 0:02:34]} Rc2 {[%emt 0:01:31]} 31. Rxe7 {[%emt 0:00:27]} Kf8 {[%emt 0:01:45]} 32. Rb7 {[%emt 0:01:50]} Rxf2+ {[%emt 0:00:06]} 33. Kg1 {[%emt 0:00:01]} Rb2 {[%emt 0:00:57]} 34. Ne4 {[%emt 0:04:23]} Nxe4 {[%emt 0:06:08]} 35. Bxe4 {[%emt 0:00:04]} Ng6 {[%emt 0:00:35]} 36. Bxg6 {[%emt 0:02:02]} hxg6 {[%emt 0:00:08]} 37. Rb8+ {[%emt 0:02:31]} Ke7 {[%emt 0:00:07]} 38. Rb7+ {[%emt 0:00:03]} Ke8 {[%emt 0:00:34]} 39. Rb8+ {[%emt 0:00:55]} Kd7 {[%emt 0:00:08]} 40. Rb7+ {[%emt 0:00:00]} Kc6 {[%emt 0:00:00]} 41. Rxf7 {[%emt 0:01:15]} b3 {[%emt 0:02:05]} 42. Re7 {[%emt 0:12:42]} Rc2 {[%emt 0:05:42]} 43. Rxe6+ {[%emt 0:01:36]} Kc5 {[%emt 0:00:17]} 44. Re5+ {[%emt 0:02:29]} Kd4 {[%emt 0:00:18]} 45. Re6 {[%emt 0:01:15]} b2 {[%emt 0:00:17]} 46. Rb6 {[%emt 0:00:45]} Rc1+ {[%emt 0:00:15]} 47. Kg2 b1=Q {[%emt 0:00:16]} 48. Rxb1 {[%emt 0:00:04]} Rxb1 {[%emt 0:00:06]} 49. Kg3 {[%emt 0:00:03]} Kxd3 {[%emt 0:00:19]} 50. Kh4 {[%emt 0:00:21]} Rb5 {[%emt 0:00:28]} 0-1

[Event "3rd Memorial Warakomska 2019"]
[Site "Suwalki"]
[Date "2019.08.12"]
[Round "9.40"]
[White "Kokoszczynski, Jan"]
[Black "Selbes, Tarik"]
[Result "1-0"]
[ECO "E06"]
[WhiteElo "2238"]
[BlackElo "2342"]
[Annotator "ChessBase"]
[PlyCount "87"]
[EventDate "2019.08.05"]
[EventType "swiss"]
[EventCountry "POL"]
[SourceTitle "playchess.com"]
[Source "ChessBase"]
[SourceQuality "1"]
[TimeControl "40/5400+30:1800+30"]

1. d4 {[%emt 0:00:00]} Nf6 {[%emt 0:00:25]} 2. c4 {[%emt 0:00:00]} e6 {[%emt 0:00:22]} 3. Nf3 {[%emt 0:00:02]} d5 {[%emt 0:01:00]} 4. g3 {[%emt 0:00:17]} Be7 {[%emt 0:01:41]} 5. Bg2 {[%emt 0:00:10]} O-O {[%emt 0:00:10]} 6. O-O {[%emt 0:00:07]} dxc4 {[%emt 0:00:16]} 7. Ne5 {[%emt 0:00:14]} Nc6 {[%emt 0:04:11]} 8. Bxc6 {[%emt 0:00:15]} bxc6 {[%emt 0:00:07]} 9. Nxc6 {[%emt 0:00:07]} Qd7 {[%emt 0:00:38]} 10. Nxe7+ {[%emt 0:00:15]} Qxe7 {[%emt 0:00:03]} 11. Qc2 {[%emt 0:00:22]} c5 {[%emt 0:03:28]} 12. Qxc4 {[%emt 0:02:12]} cxd4 {[%emt 0:00:04]} 13. Qxd4 {[%emt 0:00:17]} e5 {[%emt 0:01:54]} 14. Qh4 {[%emt 0:00:17]} h6 {[%emt 0:00:33]} 15. Nc3 {[%emt 0:02:24]} Qe6 {[%emt 0:04:16]} 16. e4 {[%emt 0:04:15]} Rb8 {[%emt 0:01:17]} 17. f3 {[%emt 0:02:09]} Ba6 {[%emt 0:03:12]} 18. Rd1 {[%emt 0:10:39]} Qb6+ {[%emt 0:06:44]} 19. Kg2 {[%emt 0:01:50]} Rfd8 {[%emt 0:00:11]} 20. g4 {[%emt 0:12:17]} Rxd1 {[%emt 0:02:22]} 21. Nxd1 {[%emt 0:00:17]} Qd4 {[%emt 0:14:00]} 22. Nc3 {[%emt 0:10:52]} Qd3 {[%emt 0:10:45]} 23. Qf2 {[%emt 0:01:03]} h5 {[%emt 0:10:26]} 24. h3 {[%emt 0:12:17]} Nd7 {[%emt 0:03:45]} 25. Be3 {[%emt 0:01:59]} Rxb2 {[%emt 0:02:48]} 26. Qxb2 {[%emt 0:01:31]} Qxe3 {[%emt 0:00:04]} 27. Rd1 {[%emt 0:05:33]} Nb6 {[%emt 0:04:23]} 28. Rd8+ {[%emt 0:04:47]} Kh7 {[%emt 0:00:06]} 29. Qd2 {[%emt 0:01:00]} Bf1+ {[%emt 0:05:35]} 30. Kxf1 {[%emt 0:03:37]} Qxf3+ {[%emt 0:00:05]} 31. Qf2 {[%emt 0:16:15]} Qxh3+ {[%emt 0:00:06]} 32. Ke2 {[%emt 0:01:18]} Qxg4+ {[%emt 0:00:23]} 33. Qf3 {[%emt 0:02:31]} Qg5 {[%emt 0:00:48]} 34. Qf5+ {[%emt 0:00:31]} Qxf5 {[%emt 0:00:05]} 35. exf5 {[%emt 0:00:01]} g6 {[%emt 0:00:27]} 36. Nd5 {[%emt 0:01:53]} Nc4 {[%emt 0:01:26]} 37. Kd3 {[%emt 0:02:37]} Na5 {[%emt 0:00:06]} 38. f6 {[%emt 0:00:48]} g5 {[%emt 0:00:32]} 39. Ke4 {[%emt 0:01:25]} h4 {[%emt 0:00:06]} 40. Rc8 {[%emt 0:00:00]} g4 {[%emt 0:00:00]} 41. Kf5 {[%emt 0:11:13]} g3 {[%emt 0:01:47]} 42. Rf8 {[%emt 0:06:59]} g2 {[%emt 0:00:35]} 43. Rxf7+ {[%emt 0:00:11]} Kh6 {[%emt 0:01:07]} 44. Rg7 {[%emt 0:02:02]} 1-0

[Event "3rd Memorial Warakomska 2019"]
[Site "Suwalki"]
[Date "2019.08.12"]
[Round "9.41"]
[White "Czarniecka, Aleksandra"]
[Black "Sowul, Bartosz"]
[Result "0-1"]
[ECO "B37"]
[WhiteElo "2042"]
[BlackElo "2210"]
[Annotator "NA"]
[PlyCount "88"]
[EventDate "2019.08.05"]
[EventType "swiss"]
[EventCountry "POL"]
[SourceTitle "playchess.com"]
[Source "ChessBase"]
[SourceQuality "1"]
[TimeControl "40/5400+30:1800+30"]

1. e4 {[%emt 0:00:00]} c5 {[%emt 0:00:00]} 2. Nf3 {[%emt 0:00:00]} Nc6 {[%emt 0:00:13]} 3. d4 {[%emt 0:00:05]} cxd4 {[%emt 0:00:05]} 4. Nxd4 {[%emt 0:00:07]} g6 {[%emt 0:00:07]} 5. c4 {[%emt 0:00:30]} Bg7 {[%emt 0:00:05]} 6. Nc2 {[%emt 0:00:24]} e6 {[%emt 0:00:05]} 7. Be2 {[%emt 0:02:22]} Nge7 {[%emt 0:00:08]} 8. Nc3 {[%emt 0:03:33]} f5 {[%emt 0:00:24]} 9. exf5 {[%emt 0:07:20]} Nxf5 {[%emt 0:00:09]} 10. Ne3 {[%emt 0:01:31]} Nfd4 {[%emt 0:04:49]} 11. O-O {[%emt 0:10:23]} Nxe2+ {[%emt 0:00:49]} 12. Nxe2 {[%emt 0:01:46]} O-O {[%emt 0:00:13]} 13. Rb1 {[%emt 0:01:24]} b6 {[%emt 0:01:45]} 14. b3 {[%emt 0:08:22]} d5 {[%emt 0:12:38]} 15. Ba3 {[%emt 0:06:44]} d4 {[%emt 0:02:39]} 16. Bxf8 {[%emt 0:01:19]} Kxf8 {[%emt 0:00:47]} 17. Ng3 {[%emt 0:06:16]} Kg8 {[%emt 0:04:23]} 18. Nc2 {[%emt 0:01:11]} Bb7 {[%emt 0:00:45]} 19. Ne1 {[%emt 0:05:31]} e5 {[%emt 0:07:14]} 20. Nd3 {[%emt 0:00:54]} h5 {[%emt 0:08:37]} 21. Ne4 {[%emt 0:03:15]} Ne7 {[%emt 0:03:42]} 22. Qe2 {[%emt 0:02:12]} Nf5 {[%emt 0:00:59]} 23. Rfd1 {[%emt 0:04:39]} Qh4 {[%emt 0:04:42]} 24. Re1 {[%emt 0:03:07]} Re8 {[%emt 0:00:49]} 25. c5 {[%emt 0:02:31]} Ba6 {[%emt 0:06:06]} 26. Qc2 {[%emt 0:04:23]} Ne3 {[%emt 0:03:57]} 27. fxe3 {[%emt 0:02:53]} Qxe4 {[%emt 0:00:06]} 28. Nb4 {[%emt 0:01:53]} Qxc2 {[%emt 0:01:48]} 29. Nxc2 {[%emt 0:00:04]} bxc5 {[%emt 0:04:08]} 30. Rbd1 {[%emt 0:04:17]} d3 {[%emt 0:02:14]} 31. Na3 {[%emt 0:00:19]} e4 {[%emt 0:03:47]} 32. Nc4 {[%emt 0:00:44]} Bxc4 {[%emt 0:04:58]} 33. bxc4 {[%emt 0:00:05]} Re6 {[%emt 0:00:09]} 34. Rb1 {[%emt 0:02:14]} Ra6 {[%emt 0:00:06]} 35. Rb8+ {[%emt 0:03:02]} Kh7 {[%emt 0:01:34]} 36. Re8 {[%emt 0:04:41]} Rxa2 {[%emt 0:01:20]} 37. Rxe4 {[%emt 0:00:09]} d2 {[%emt 0:00:33]} 38. Rd1 {[%emt 0:00:30]} Ra1 {[%emt 0:00:07]} 39. Rxa1 {[%emt 0:04:01]} Bxa1 {[%emt 0:00:07]} 40. Re7+ {[%emt 0:00:00]} Kh6 {[%emt 0:00:00]} 41. Rd7 {[%emt 0:00:34]} Bd4 {[%emt 0:00:12]} 42. exd4 {[%emt 0:02:39]} d1=Q+ {[%emt 0:00:06]} 43. Kf2 {[%emt 0:00:08]} Qd2+ {[%emt 0:00:05]} 44. Kf1 {[%emt 0:00:58]} cxd4 {[%emt 0:00:30]} 0-1

[Event "3rd Memorial Warakomska 2019"]
[Site "Suwalki"]
[Date "2019.08.12"]
[Round "9.42"]
[White "Lisowski, Krzysztof"]
[Black "Wolanski, Michal"]
[Result "1-0"]
[ECO "B20"]
[WhiteElo "2187"]
[BlackElo "2007"]
[Annotator "ChessBase"]
[PlyCount "87"]
[EventDate "2019.08.05"]
[EventType "swiss"]
[EventCountry "POL"]
[SourceTitle "playchess.com"]
[Source "ChessBase"]
[SourceQuality "1"]
[TimeControl "40/5400+30:1800+30"]

1. e4 {[%emt 0:00:40]} c5 {[%emt 0:00:00]} 2. d3 {[%emt 0:00:07]} g6 {[%emt 0:00:00]} 3. f4 {[%emt 0:03:46]} Bg7 {[%emt 0:00:02]} 4. Nf3 {[%emt 0:00:26]} Nc6 {[%emt 0:00:27]} 5. g3 {[%emt 0:10:35]} d6 {[%emt 0:02:06]} 6. Bg2 {[%emt 0:00:12]} e5 {[%emt 0:03:03]} 7. O-O {[%emt 0:11:44]} Nge7 {[%emt 0:00:35]} 8. f5 {[%emt 0:12:00]} gxf5 {[%emt 0:05:19]} 9. Nh4 {[%emt 0:00:12]} fxe4 {[%emt 0:11:28]} 10. dxe4 {[%emt 0:01:36]} Qc7 {[%emt 0:18:21]} 11. Na3 {[%emt 0:00:52]} O-O {[%emt 0:09:57]} 12. Nc4 {[%emt 0:21:41]} Be6 {[%emt 0:07:35]} 13. Ne3 {[%emt 0:10:09]} Qd7 {[%emt 0:12:27]} 14. Qh5 {[%emt 0:02:08]} f6 {[%emt 0:05:19]} 15. Nhf5 {[%emt 0:04:54]} Nxf5 {[%emt 0:01:55]} 16. Nxf5 {[%emt 0:00:19]} Bxf5 {[%emt 0:02:23]} 17. Rxf5 {[%emt 0:00:07]} Qf7 {[%emt 0:01:55]} 18. Qh4 {[%emt 0:00:35]} Ne7 {[%emt 0:03:07]} 19. Rh5 {[%emt 0:00:42]} Qg6 {[%emt 0:00:35]} 20. Bh3 {[%emt 0:01:57]} f5 {[%emt 0:05:27]} 21. Bg5 {[%emt 0:02:24]} Bf6 {[%emt 0:00:26]} 22. Rf1 {[%emt 0:07:28]} f4 {[%emt 0:03:02]} 23. gxf4 {[%emt 0:04:01]} exf4 {[%emt 0:00:44]} 24. Be6+ {[%emt 0:01:52]} Kh8 {[%emt 0:02:20]} 25. Rxh7+ {[%emt 0:00:21]} Qxh7 {[%emt 0:00:14]} 26. Bxf6+ {[%emt 0:00:03]} Rxf6 {[%emt 0:00:40]} 27. Qxf6+ {[%emt 0:00:03]} Qg7+ {[%emt 0:00:11]} 28. Qxg7+ {[%emt 0:00:04]} Kxg7 {[%emt 0:00:04]} 29. Rxf4 {[%emt 0:00:07]} Rf8 {[%emt 0:01:43]} 30. Rxf8 {[%emt 0:00:17]} Kxf8 {[%emt 0:00:02]} 31. Bd5 {[%emt 0:00:11]} b6 {[%emt 0:00:11]} 32. Kf2 {[%emt 0:00:27]} Kg7 {[%emt 0:00:10]} 33. Kg3 {[%emt 0:02:51]} Kf6 {[%emt 0:00:18]} 34. h4 {[%emt 0:00:40]} Ng6 {[%emt 0:03:28]} 35. h5 {[%emt 0:00:52]} Ne5 {[%emt 0:00:09]} 36. Kf4 {[%emt 0:00:13]} Nd7 {[%emt 0:00:28]} 37. Bg8 {[%emt 0:00:42]} Kg7 {[%emt 0:01:09]} 38. Be6 {[%emt 0:00:20]} Nf6 {[%emt 0:00:05]} 39. Bg4 {[%emt 0:00:41]} b5 {[%emt 0:00:44]} 40. Be2 {[%emt 0:00:00]} c4 {[%emt 0:00:00]} 41. e5 {[%emt 0:05:45]} Nd5+ {[%emt 0:04:00]} 42. Ke4 {[%emt 0:01:08]} c3 {[%emt 0:00:17]} 43. b3 {[%emt 0:00:37]} Nb4 {[%emt 0:01:02]} 44. exd6 {[%emt 0:00:48]} 1-0

[Event "3rd Memorial Warakomska 2019"]
[Site "Suwalki"]
[Date "2019.08.12"]
[Round "9.43"]
[White "Maj, Pawel"]
[Black "Leskiewicz, Ignacy"]
[Result "1/2-1/2"]
[ECO "A10"]
[WhiteElo "2127"]
[BlackElo "2120"]
[Annotator "NA"]
[PlyCount "95"]
[EventDate "2019.08.05"]
[EventType "swiss"]
[EventCountry "POL"]
[SourceTitle "playchess.com"]
[Source "ChessBase"]
[SourceQuality "1"]
[TimeControl "40/5400+30:1800+30"]

1. c4 {[%emt 0:00:00]} g6 {[%emt 0:00:00]} 2. Nc3 {[%emt 0:00:30]} Bg7 {[%emt 0:00:30]} 3. g3 {[%emt 0:00:30]} Nf6 {[%emt 0:00:30]} 4. Bg2 {[%emt 0:00:30]} O-O {[%emt 0:00:30]} 5. e4 {[%emt 0:00:30]} d6 {[%emt 0:00:30]} 6. Nge2 {[%emt 0:00:30]} c5 {[%emt 0:01:06]} 7. Rb1 {[%emt 0:00:00]} Nc6 {[%emt 0:04:48]} 8. a3 {[%emt 0:00:47]} a5 {[%emt 0:15:46]} 9. O-O {[%emt 0:01:05]} Nd4 {[%emt 0:12:46]} 10. d3 {[%emt 0:05:04]} Nxe2+ {[%emt 0:13:49]} 11. Qxe2 {[%emt 0:02:09]} Nd7 {[%emt 0:04:06]} 12. f4 {[%emt 0:03:39]} e6 {[%emt 0:06:24]} 13. Nb5 {[%emt 0:04:29]} Nb8 {[%emt 0:06:24]} 14. b4 {[%emt 0:15:29]} axb4 {[%emt 0:03:01]} 15. axb4 {[%emt 0:00:08]} cxb4 {[%emt 0:05:06]} 16. d4 {[%emt 0:07:56]} Nc6 {[%emt 0:03:25]} 17. Rd1 {[%emt 0:06:45]} d5 {[%emt 0:05:26]} 18. e5 {[%emt 0:01:14]} b6 {[%emt 0:07:31]} 19. Qc2 {[%emt 0:04:33]} Ne7 {[%emt 0:03:32]} 20. Nd6 {[%emt 0:06:00]} Nf5 {[%emt 0:02:20]} 21. Nxf5 {[%emt 0:01:42]} gxf5 {[%emt 0:00:30]} 22. cxd5 {[%emt 0:00:25]} exd5 {[%emt 0:00:20]} 23. Qb3 {[%emt 0:02:54]} Be6 {[%emt 0:01:13]} 24. Bd2 {[%emt 0:02:24]} Qd7 {[%emt 0:00:48]} 25. Bxb4 {[%emt 0:01:05]} Rfc8 {[%emt 0:00:10]} 26. Rd2 {[%emt 0:06:14]} Qb5 {[%emt 0:01:01]} 27. Bf1 {[%emt 0:03:43]} Qa4 {[%emt 0:00:59]} 28. Qxa4 {[%emt 0:03:13]} Rxa4 {[%emt 0:00:01]} 29. Bd6 {[%emt 0:00:27]} Bf8 {[%emt 0:01:22]} 30. Bxf8 {[%emt 0:00:21]} Kxf8 {[%emt 0:00:01]} 31. Kf2 {[%emt 0:00:51]} Rb8 {[%emt 0:00:32]} 32. Rb5 {[%emt 0:02:02]} Ra5 {[%emt 0:00:41]} 33. Rdb2 {[%emt 0:01:10]} Ra4 {[%emt 0:00:09]} 34. Ke3 {[%emt 0:01:12]} Ra1 {[%emt 0:01:07]} 35. Bg2 {[%emt 0:01:41]} Rc8 {[%emt 0:00:33]} 36. Bxd5 {[%emt 0:01:39]} Bxd5 {[%emt 0:00:28]} 37. Rxd5 {[%emt 0:00:07]} Rc3+ {[%emt 0:00:06]} 38. Kf2 {[%emt 0:01:13]} h5 {[%emt 0:00:53]} 39. Rdb5 {[%emt 0:06:37]} h4 {[%emt 0:00:27]} 40. gxh4 {[%emt 0:04:29]} Rh3 {[%emt 0:00:00]} 41. Kg2 {[%emt 0:00:40]} Rxh4 {[%emt 0:00:01]} 42. d5 {[%emt 0:04:51]} Rg4+ {[%emt 0:14:17]} 43. Kf3 {[%emt 0:01:17]} Rf1+ {[%emt 0:00:23]} 44. Rf2 {[%emt 0:01:57]} Rxf2+ {[%emt 0:00:50]} 45. Kxf2 {[%emt 0:00:07]} Rxf4+ {[%emt 0:00:01]} 46. Kg3 {[%emt 0:00:59]} Re4 {[%emt 0:00:41]} 47. d6 {[%emt 0:01:16]} Ke8 {[%emt 0:02:16]} 48. Rxb6 1/2-1/2

[Event "3rd Memorial Warakomska 2019"]
[Site "Suwalki"]
[Date "2019.08.12"]
[Round "9.44"]
[White "Bommini Mounika Akshaya"]
[Black "Balinski, Damian"]
[Result "1-0"]
[ECO "A88"]
[WhiteElo "2063"]
[BlackElo "2176"]
[Annotator "NA"]
[PlyCount "98"]
[EventDate "2019.08.05"]
[EventType "swiss"]
[EventCountry "POL"]
[SourceTitle "playchess.com"]
[Source "ChessBase"]
[SourceQuality "1"]
[TimeControl "40/5400+30:1800+30"]

1. d4 {[%emt 0:01:50]} f5 {[%emt 0:00:00]} 2. Nf3 {[%emt 0:00:17]} Nf6 {[%emt 0:00:00]} 3. g3 {[%emt 0:00:19]} g6 {[%emt 0:00:00]} 4. Bg2 {[%emt 0:00:06]} Bg7 {[%emt 0:00:00]} 5. O-O {[%emt 0:00:36]} O-O {[%emt 0:00:00]} 6. c4 {[%emt 0:00:21]} d6 {[%emt 0:00:00]} 7. Nc3 {[%emt 0:01:04]} c6 {[%emt 0:00:00]} 8. Qc2 {[%emt 0:11:10]} Na6 {[%emt 0:01:11]} 9. a3 {[%emt 0:00:45]} Qe8 {[%emt 0:01:12]} 10. b4 {[%emt 0:03:30]} e5 {[%emt 0:02:46]} 11. e3 {[%emt 0:11:20]} e4 {[%emt 0:07:04]} 12. Nd2 {[%emt 0:00:22]} g5 {[%emt 0:09:23]} 13. f3 {[%emt 0:08:38]} d5 {[%emt 0:10:46]} 14. cxd5 {[%emt 0:03:47]} cxd5 {[%emt 0:00:27]} 15. b5 {[%emt 0:00:35]} Nb8 {[%emt 0:14:57]} 16. fxe4 {[%emt 0:02:25]} dxe4 {[%emt 0:02:05]} 17. Nc4 {[%emt 0:01:52]} Be6 {[%emt 0:01:27]} 18. Nd2 {[%emt 0:16:30]} Nbd7 {[%emt 0:01:49]} 19. a4 {[%emt 0:02:47]} Rc8 {[%emt 0:02:11]} 20. Qb2 {[%emt 0:03:22]} h5 {[%emt 0:05:18]} 21. a5 {[%emt 0:07:13]} Ng4 {[%emt 0:06:34]} 22. Nb3 {[%emt 0:02:23]} Bc4 {[%emt 0:01:05]} 23. Re1 {[%emt 0:01:37]} h4 {[%emt 0:03:15]} 24. Bf1 {[%emt 0:05:28]} hxg3 {[%emt 0:02:16]} 25. hxg3 {[%emt 0:00:56]} Qf7 {[%emt 0:11:07]} 26. Ra3 {[%emt 0:05:43]} Rfe8 {[%emt 0:02:58]} 27. Bxc4 {[%emt 0:04:32]} Qxc4 {[%emt 0:00:03]} 28. Nd2 {[%emt 0:00:28]} Qf7 {[%emt 0:05:35]} 29. Qb3 {[%emt 0:00:19]} Qxb3 {[%emt 0:00:31]} 30. Rxb3 {[%emt 0:00:04]} Nxe3 {[%emt 0:02:45]} 31. Rxe3 {[%emt 0:01:47]} Bxd4 {[%emt 0:00:02]} 32. Ne2 {[%emt 0:00:19]} f4 {[%emt 0:02:17]} 33. gxf4 {[%emt 0:02:25]} Bxe3+ {[%emt 0:05:00]} 34. Rxe3 {[%emt 0:00:10]} gxf4 {[%emt 0:00:08]} 35. Rxe4 {[%emt 0:00:18]} Rxe4 {[%emt 0:01:18]} 36. Nxe4 {[%emt 0:00:05]} f3 {[%emt 0:01:05]} 37. N2c3 {[%emt 0:00:04]} Rc4 {[%emt 0:00:47]} 38. Bd2 {[%emt 0:01:57]} a6 {[%emt 0:00:31]} 39. bxa6 {[%emt 0:00:32]} bxa6 {[%emt 0:00:02]} 40. Kf2 {[%emt 0:00:00]} Ne5 {[%emt 0:00:00]} 41. Bf4 {[%emt 0:08:22]} Nc6 {[%emt 0:01:31]} 42. Bc7 {[%emt 0:00:37]} Ne7 {[%emt 0:05:08]} 43. Bb6 {[%emt 0:03:40]} Nc8 {[%emt 0:00:50]} 44. Be3 {[%emt 0:06:23]} Nd6 {[%emt 0:04:26]} 45. Kxf3 {[%emt 0:01:53]} Nxe4 {[%emt 0:00:06]} 46. Nxe4 {[%emt 0:00:04]} Rc2 {[%emt 0:03:45]} 47. Bb6 {[%emt 0:00:23]} Kf7 {[%emt 0:00:56]} 48. Nc5 {[%emt 0:01:04]} Rxc5 {[%emt 0:00:45]} 49. Bxc5 {[%emt 0:00:05]} Ke6 {[%emt 0:00:04]} 1-0